[Event "*** Titled Tuesday Blitz"]
[Site "Chess.com"]
[Date "2020.05.26"]
[Round "4"]
[White "CaspiIsrael"]
[Black "aakankshachess"]
[Result "1/2-1/2"]
[WhiteElo "2612"]
[BlackElo "2461"]
[TimeControl "180+1"]
[EndTime "10:40:05 PDT"]
[Termination "Game drawn - insufficient material"]

1. e4 {[%clk 0:03:00.9]} 1... e5 {[%clk 0:02:55.2]} 2. Nf3 {[%clk 0:03:01.1]}
2... Nc6 {[%clk 0:02:55.1]} 3. d4 {[%clk 0:03:01.4]} 3... exd4 {[%clk
0:02:54.7]} 4. Nxd4 {[%clk 0:03:02.3]} 4... Bc5 {[%clk 0:02:49.4]} 5. Nb3 {[%clk
0:02:57]} 5... Bb6 {[%clk 0:02:48.5]} 6. Nc3 {[%clk 0:02:57.2]} 6... d6 {[%clk
0:02:47.1]} 7. Qe2 {[%clk 0:02:55]} 7... Nge7 {[%clk 0:02:45.9]} 8. Be3 {[%clk
0:02:55.1]} 8... O-O {[%clk 0:02:44.9]} 9. O-O-O {[%clk 0:02:54.6]} 9... Be6
{[%clk 0:02:43]} 10. Kb1 {[%clk 0:02:52.9]} 10... a5 {[%clk 0:02:20.9]} 11. Bxb6
{[%clk 0:02:47.4]} 11... cxb6 {[%clk 0:02:20.3]} 12. Nd4 {[%clk 0:02:43.8]}
12... Nxd4 {[%clk 0:02:17.4]} 13. Rxd4 {[%clk 0:02:44.7]} 13... Nc6 {[%clk
0:02:17.9]} 14. Rd1 {[%clk 0:02:42.2]} 14... a4 {[%clk 0:02:18.1]} 15. a3 {[%clk
0:02:40.6]} 15... Qf6 {[%clk 0:02:16.3]} 16. Qe3 {[%clk 0:02:30.2]} 16... Ne5
{[%clk 0:02:08.3]} 17. h3 {[%clk 0:02:27]} 17... Rfc8 {[%clk 0:02:00]} 18. f4
{[%clk 0:02:25.8]} 18... Nc4 {[%clk 0:01:59.1]} 19. Bxc4 {[%clk 0:02:25.7]}
19... Bxc4 {[%clk 0:01:59.9]} 20. Rd4 {[%clk 0:02:19.1]} 20... b5 {[%clk
0:01:58.5]} 21. Rhd1 {[%clk 0:02:18.2]} 21... Rd8 {[%clk 0:01:49.2]} 22. Qd2
{[%clk 0:02:09.4]} 22... h6 {[%clk 0:01:43.6]} 23. Rxd6 {[%clk 0:02:05.6]} 23...
Rxd6 {[%clk 0:01:42.7]} 24. Qxd6 {[%clk 0:02:06.5]} 24... Qh4 {[%clk 0:01:43.1]}
25. Qd2 {[%clk 0:01:58.9]} 25... Qg3 {[%clk 0:01:40]} 26. e5 {[%clk 0:01:47]}
26... b4 {[%clk 0:01:34.9]} 27. axb4 {[%clk 0:01:31.8]} 27... a3 {[%clk
0:01:28.6]} 28. bxa3 {[%clk 0:01:29.4]} 28... Rxa3 {[%clk 0:01:27.4]} 29. Kb2
{[%clk 0:01:29.4]} 29... Ra8 {[%clk 0:01:21.7]} 30. Qd4 {[%clk 0:01:22.3]} 30...
Be6 {[%clk 0:01:18.7]} 31. Rd2 {[%clk 0:01:10.7]} 31... Rc8 {[%clk 0:01:14.2]}
32. Ne4 {[%clk 0:01:05.9]} 32... Qe1 {[%clk 0:01:10.2]} 33. Nc5 {[%clk
0:01:04.4]} 33... Ra8 {[%clk 0:00:52.7]} 34. Rd1 {[%clk 0:00:55.8]} 34... Qg3
{[%clk 0:00:45.9]} 35. Nxe6 {[%clk 0:00:45.7]} 35... fxe6 {[%clk 0:00:39.1]} 36.
Ra1 {[%clk 0:00:41.1]} 36... Rxa1 {[%clk 0:00:27.8]} 37. Kxa1 {[%clk 0:00:41]}
37... Qxg2 {[%clk 0:00:27.4]} 38. Qc4 {[%clk 0:00:36.6]} 38... Qh1+ {[%clk
0:00:19.5]} 39. Kb2 {[%clk 0:00:35.4]} 39... Qxh3 {[%clk 0:00:19.5]} 40. Qc8+
{[%clk 0:00:35.1]} 40... Kh7 {[%clk 0:00:19.8]} 41. Qxb7 {[%clk 0:00:35.6]}
41... Qe3 {[%clk 0:00:19.2]} 42. Qd7 {[%clk 0:00:29.6]} 42... Qxf4 {[%clk
0:00:18.5]} 43. Qxe6 {[%clk 0:00:27.6]} 43... Qxb4+ {[%clk 0:00:18.3]} 44. Ka2
{[%clk 0:00:27.5]} 44... Qa4+ {[%clk 0:00:18.4]} 45. Kb1 {[%clk 0:00:27.7]}
45... Qb4+ {[%clk 0:00:18.6]} 46. Kc1 {[%clk 0:00:25.2]} 46... Qe1+ {[%clk
0:00:18.3]} 47. Kb2 {[%clk 0:00:25.6]} 47... Qb4+ {[%clk 0:00:18.7]} 48. Qb3
{[%clk 0:00:20.7]} 48... Qxb3+ {[%clk 0:00:15.7]} 49. cxb3 {[%clk 0:00:19.6]}
49... h5 {[%clk 0:00:16.2]} 50. b4 {[%clk 0:00:20.1]} 50... h4 {[%clk
0:00:16.1]} 51. b5 {[%clk 0:00:21]} 51... h3 {[%clk 0:00:16.5]} 52. b6 {[%clk
0:00:21.9]} 52... h2 {[%clk 0:00:16.6]} 53. b7 {[%clk 0:00:22.8]} 53... h1=Q
{[%clk 0:00:16.8]} 54. b8=Q {[%clk 0:00:23.7]} 54... Qg2+ {[%clk 0:00:17.2]} 55.
Kc3 {[%clk 0:00:24]} 55... Qf3+ {[%clk 0:00:17.4]} 56. Kd4 {[%clk 0:00:24.4]}
56... Qf4+ {[%clk 0:00:17.8]} 57. Kd5 {[%clk 0:00:24.6]} 57... Qd2+ {[%clk
0:00:17.7]} 58. Ke6 {[%clk 0:00:24.5]} 58... Qh6+ {[%clk 0:00:17.8]} 59. Kf7
{[%clk 0:00:22.5]} 59... Qf4+ {[%clk 0:00:17.1]} 60. Ke8 {[%clk 0:00:20.7]}
60... Kg6 {[%clk 0:00:15.8]} 61. Qd6+ {[%clk 0:00:20.4]} 61... Kf5 {[%clk
0:00:15.2]} 62. Kf7 {[%clk 0:00:11.4]} 62... Qxe5 {[%clk 0:00:12.7]} 63. Qxe5+
{[%clk 0:00:11.3]} 63... Kxe5 {[%clk 0:00:12.8]} 64. Kxg7 {[%clk 0:00:12.2]}
1/2-1/2

[Event "*** Titled Tuesday Blitz"]
[Site "Chess.com"]
[Date "2020.05.26"]
[Round "4"]
[White "Falia-p"]
[Black "SamuelGhimpu2003"]
[Result "0-1"]
[WhiteElo "2315"]
[BlackElo "2585"]
[TimeControl "180+1"]
[EndTime "10:40:07 PDT"]
[Termination "SamuelGhimpu2003 won by checkmate"]

1. e4 {[%clk 0:03:00.9]} 1... e6 {[%clk 0:03:00]} 2. d4 {[%clk 0:03:00.2]} 2...
d5 {[%clk 0:03:00.9]} 3. Nc3 {[%clk 0:03:00]} 3... Nf6 {[%clk 0:02:51.2]} 4. e5
{[%clk 0:02:59.7]} 4... Nfd7 {[%clk 0:02:39.4]} 5. f4 {[%clk 0:02:59.1]} 5... c5
{[%clk 0:02:40.3]} 6. Nf3 {[%clk 0:02:58.8]} 6... Nc6 {[%clk 0:02:41.2]} 7. Be3
{[%clk 0:02:58.2]} 7... Be7 {[%clk 0:02:40.6]} 8. Qd2 {[%clk 0:02:53.3]} 8...
O-O {[%clk 0:02:41.5]} 9. dxc5 {[%clk 0:02:52]} 9... Qa5 {[%clk 0:02:40.9]} 10.
a3 {[%clk 0:02:49.8]} 10... Bxc5 {[%clk 0:02:40.1]} 11. Bxc5 {[%clk 0:02:35.1]}
11... Nxc5 {[%clk 0:02:41]} 12. Bd3 {[%clk 0:02:35.5]} 12... Bd7 {[%clk
0:02:39.6]} 13. O-O {[%clk 0:02:33.8]} 13... Nxd3 {[%clk 0:02:39.8]} 14. Qxd3
{[%clk 0:02:30.4]} 14... Rfc8 {[%clk 0:02:40.7]} 15. Ne2 {[%clk 0:02:24.9]}
15... Qb6+ {[%clk 0:02:32]} 16. Kh1 {[%clk 0:02:23.5]} 16... h6 {[%clk
0:02:26.1]} 17. Ng3 {[%clk 0:02:06]} 17... Ne7 {[%clk 0:02:19.7]} 18. Rfb1
{[%clk 0:01:44]} 18... Rc7 {[%clk 0:01:58.5]} 19. Nd4 {[%clk 0:01:42.7]} 19...
Rac8 {[%clk 0:01:57.7]} 20. c3 {[%clk 0:01:41.7]} 20... Ba4 {[%clk 0:01:46.6]}
21. f5 {[%clk 0:01:33.4]} 21... exf5 {[%clk 0:01:29.5]} 22. Ngxf5 {[%clk
0:01:31.8]} 22... Nxf5 {[%clk 0:01:29.4]} 23. Qxf5 {[%clk 0:01:24]} 23... Re8
{[%clk 0:01:28.9]} 24. b3 {[%clk 0:00:56.1]} 24... Bd7 {[%clk 0:01:25.5]} 25.
Qf3 {[%clk 0:00:53]} 25... Rxe5 {[%clk 0:01:22.1]} 26. Re1 {[%clk 0:00:52.1]}
26... Rxe1+ {[%clk 0:01:19.2]} 27. Rxe1 {[%clk 0:00:51.1]} 27... Be6 {[%clk
0:01:11.1]} 28. Qe3 {[%clk 0:00:46.6]} 28... Qc5 {[%clk 0:00:55.2]} 29. Rc1
{[%clk 0:00:45.6]} 29... Rc8 {[%clk 0:00:40]} 30. h3 {[%clk 0:00:43.6]} 30...
Qxa3 {[%clk 0:00:29.6]} 31. Nxe6 {[%clk 0:00:42.4]} 31... Re8 {[%clk 0:00:30.1]}
32. Rf1 {[%clk 0:00:28.5]} 32... Rxe6 {[%clk 0:00:28.3]} 33. Qf3 {[%clk
0:00:28.5]} 33... Rf6 {[%clk 0:00:25.3]} 34. Qe2 {[%clk 0:00:28.6]} 34... Rxf1+
{[%clk 0:00:24.9]} 35. Qxf1 {[%clk 0:00:29.5]} 35... Qxb3 {[%clk 0:00:25.8]} 36.
Qd3 {[%clk 0:00:28.4]} 36... Qc4 {[%clk 0:00:25.2]} 37. Qe3 {[%clk 0:00:24.5]}
37... g6 {[%clk 0:00:20.7]} 38. Qe8+ {[%clk 0:00:23.2]} 38... Kg7 {[%clk
0:00:20.7]} 39. Qe5+ {[%clk 0:00:23.4]} 39... Kh7 {[%clk 0:00:21.1]} 40. Qe7
{[%clk 0:00:17.3]} 40... Qf1+ {[%clk 0:00:20.8]} 41. Kh2 {[%clk 0:00:17]} 41...
Qf4+ {[%clk 0:00:21.7]} 42. Kg1 {[%clk 0:00:15.7]} 42... Kg7 {[%clk 0:00:17.2]}
43. Qxb7 {[%clk 0:00:13.7]} 43... Qc1+ {[%clk 0:00:15]} 44. Kh2 {[%clk
0:00:13.5]} 44... Qxc3 {[%clk 0:00:15.9]} 45. Qxd5 {[%clk 0:00:12.1]} 45... a5
{[%clk 0:00:14.9]} 46. Qb5 {[%clk 0:00:10.7]} 46... Qb4 {[%clk 0:00:11.6]} 47.
Qe5+ {[%clk 0:00:10.4]} 47... Kg8 {[%clk 0:00:11.8]} 48. Qe8+ {[%clk 0:00:10.1]}
48... Kg7 {[%clk 0:00:12.5]} 49. Qe5+ {[%clk 0:00:10.1]} 49... Kh7 {[%clk
0:00:13.4]} 50. Qc7 {[%clk 0:00:07]} 50... Kg8 {[%clk 0:00:10.6]} 51. Qd8+
{[%clk 0:00:04.9]} 51... Kg7 {[%clk 0:00:10.9]} 52. Qc7 {[%clk 0:00:03.9]} 52...
a4 {[%clk 0:00:10.3]} 53. Qe5+ {[%clk 0:00:04.1]} 53... Kh7 {[%clk 0:00:10.8]}
54. Qf6 {[%clk 0:00:03.6]} 54... Qb8+ {[%clk 0:00:09.8]} 55. Kg1 {[%clk
0:00:03.3]} 55... Qb1+ {[%clk 0:00:09.7]} 56. Kh2 {[%clk 0:00:03.7]} 56... Qb7
{[%clk 0:00:10.6]} 57. Qa1 {[%clk 0:00:02.4]} 57... Qc7+ {[%clk 0:00:09.9]} 58.
Kg1 {[%clk 0:00:02.2]} 58... Qa7+ {[%clk 0:00:10.8]} 59. Kh2 {[%clk 0:00:03.1]}
59... a3 {[%clk 0:00:10.4]} 60. Kh1 {[%clk 0:00:04]} 60... a2 {[%clk 0:00:10.5]}
61. h4 {[%clk 0:00:04.2]} 61... h5 {[%clk 0:00:09.3]} 62. Kh2 {[%clk 0:00:02.6]}
62... Qc7+ {[%clk 0:00:08.2]} 63. g3 {[%clk 0:00:03.5]} 63... Qc2+ {[%clk
0:00:07.4]} 64. Kh3 {[%clk 0:00:04.4]} 64... Qb1 {[%clk 0:00:08.3]} 65. Qf6
{[%clk 0:00:04.4]} 65... Qh1# {[%clk 0:00:08.4]} 0-1

[Event "*** Titled Tuesday Blitz"]
[Site "Chess.com"]
[Date "2020.05.26"]
[Round "4"]
[White "GMKrikor"]
[Black "pastouche06"]
[Result "0-1"]
[WhiteElo "2719"]
[BlackElo "2453"]
[TimeControl "180+1"]
[EndTime "10:40:17 PDT"]
[Termination "pastouche06 won by resignation"]

1. Nf3 {[%clk 0:02:48.1]} 1... d5 {[%clk 0:02:57.5]} 2. c4 {[%clk 0:02:47.3]}
2... e6 {[%clk 0:02:57.4]} 3. e3 {[%clk 0:02:40.6]} 3... Nf6 {[%clk 0:02:56.8]}
4. Nc3 {[%clk 0:02:38.9]} 4... Be7 {[%clk 0:02:49.4]} 5. b3 {[%clk 0:02:39.2]}
5... O-O {[%clk 0:02:48.8]} 6. Bb2 {[%clk 0:02:39.2]} 6... b6 {[%clk 0:02:45.5]}
7. g3 {[%clk 0:02:32.5]} 7... c5 {[%clk 0:02:37]} 8. cxd5 {[%clk 0:02:26.9]}
8... Nxd5 {[%clk 0:02:35.3]} 9. Nxd5 {[%clk 0:02:23]} 9... Qxd5 {[%clk
0:02:30.2]} 10. Bc4 {[%clk 0:02:18.5]} 10... Qh5 {[%clk 0:02:20.9]} 11. O-O
{[%clk 0:02:15.8]} 11... Bb7 {[%clk 0:02:20.4]} 12. Be2 {[%clk 0:02:05.3]} 12...
Nd7 {[%clk 0:01:43.1]} 13. d3 {[%clk 0:02:00.4]} 13... Bf6 {[%clk 0:01:36.2]}
14. Bxf6 {[%clk 0:01:38.6]} 14... Nxf6 {[%clk 0:01:37.1]} 15. Ne1 {[%clk
0:01:13.1]} 15... Qd5 {[%clk 0:01:31.9]} 16. Bf3 {[%clk 0:01:12.1]} 16... Qd7
{[%clk 0:01:32.5]} 17. Bxb7 {[%clk 0:01:09.4]} 17... Qxb7 {[%clk 0:01:33.4]} 18.
Qe2 {[%clk 0:01:09.7]} 18... Rfd8 {[%clk 0:01:32.1]} 19. Nf3 {[%clk 0:01:05.8]}
19... Rd7 {[%clk 0:01:21.8]} 20. Rfd1 {[%clk 0:01:03.6]} 20... Rad8 {[%clk
0:01:20.7]} 21. Ne5 {[%clk 0:00:55.4]} 21... Rd5 {[%clk 0:01:15.9]} 22. f4
{[%clk 0:00:54.8]} 22... Nd7 {[%clk 0:00:50]} 23. Nf3 {[%clk 0:00:51.8]} 23...
Nb8 {[%clk 0:00:48.1]} 24. Rd2 {[%clk 0:00:45.3]} 24... Qa6 {[%clk 0:00:42.8]}
25. Rad1 {[%clk 0:00:43.3]} 25... Nc6 {[%clk 0:00:42.9]} 26. Kg2 {[%clk
0:00:39.8]} 26... h6 {[%clk 0:00:36.9]} 27. h3 {[%clk 0:00:38.4]} 27... Nb4
{[%clk 0:00:36.5]} 28. Ne1 {[%clk 0:00:38.1]} 28... R5d7 {[%clk 0:00:31]} 29.
Kf2 {[%clk 0:00:35.4]} 29... Rd5 {[%clk 0:00:23.8]} 30. Kg1 {[%clk 0:00:29.6]}
30... R5d7 {[%clk 0:00:23.6]} 31. Kf1 {[%clk 0:00:26.3]} 31... Rd5 {[%clk
0:00:23.4]} 32. g4 {[%clk 0:00:26]} 32... R5d7 {[%clk 0:00:22.3]} 33. Kg1 {[%clk
0:00:25.2]} 33... Rd5 {[%clk 0:00:21.8]} 34. h4 {[%clk 0:00:25.7]} 34... g5
{[%clk 0:00:20.4]} 35. hxg5 {[%clk 0:00:19.7]} 35... hxg5 {[%clk 0:00:21.3]} 36.
fxg5 {[%clk 0:00:14.4]} 36... Rxg5 {[%clk 0:00:20.8]} 37. Kh1 {[%clk 0:00:12.2]}
37... Kg7 {[%clk 0:00:18.6]} 38. Nf3 {[%clk 0:00:06.6]} 38... Rxg4 {[%clk
0:00:16.3]} 39. Nh2 {[%clk 0:00:06.8]} 39... Rg6 {[%clk 0:00:15.5]} 40. Qf1
{[%clk 0:00:06.2]} 40... Rh8 {[%clk 0:00:14.6]} 41. Rf2 {[%clk 0:00:05.9]} 41...
Qb7+ {[%clk 0:00:14.4]} 42. e4 {[%clk 0:00:06]} 42... Nc6 {[%clk 0:00:11.8]} 43.
Rdd2 {[%clk 0:00:03.7]} 43... Ne5 {[%clk 0:00:10.6]} 44. Rg2 {[%clk 0:00:04.6]}
44... Ng4 {[%clk 0:00:10.3]} 45. Kg1 {[%clk 0:00:04.4]} 45... Nxh2 {[%clk
0:00:06.3]} 46. Rxg6+ {[%clk 0:00:03.2]} 46... fxg6 {[%clk 0:00:06.2]} 47. Rxh2
{[%clk 0:00:03.2]} 47... Rxh2 {[%clk 0:00:06.1]} 48. Kxh2 {[%clk 0:00:04.1]}
48... Qd7 {[%clk 0:00:06.4]} 49. Qf4 {[%clk 0:00:02.8]} 49... Qxd3 {[%clk
0:00:05.5]} 50. Qe5+ {[%clk 0:00:03]} 50... Kf7 {[%clk 0:00:05.4]} 51. Qc7+
{[%clk 0:00:03.4]} 51... Kf6 {[%clk 0:00:05.8]} 52. Qf4+ {[%clk 0:00:03.5]}
52... Ke7 {[%clk 0:00:02.9]} 53. Qg5+ {[%clk 0:00:03.9]} 53... Kd6 {[%clk
0:00:03]} 54. Qxg6 {[%clk 0:00:04.2]} 54... Qe2+ {[%clk 0:00:02.2]} 55. Kg3
{[%clk 0:00:04.1]} 55... Qxa2 {[%clk 0:00:03.1]} 56. Qf6 {[%clk 0:00:03.1]}
56... Qxb3+ {[%clk 0:00:02.8]} 57. Kf4 {[%clk 0:00:02.2]} 57... Qc4 {[%clk
0:00:03.7]} 58. Qd8+ {[%clk 0:00:01.9]} 58... Kc6 {[%clk 0:00:03.6]} 59. Qe8+
{[%clk 0:00:02.5]} 59... Kb7 {[%clk 0:00:03.5]} 60. Qd7+ {[%clk 0:00:02.7]}
60... Ka6 {[%clk 0:00:03.7]} 61. Ke5 {[%clk 0:00:03.5]} 61... b5 {[%clk
0:00:03.8]} 62. Qc7 {[%clk 0:00:02.7]} 62... b4 {[%clk 0:00:03.2]} 63. Qc6+
{[%clk 0:00:03.3]} 63... Ka5 {[%clk 0:00:03.4]} 64. Qc7+ {[%clk 0:00:03.7]}
64... Ka4 {[%clk 0:00:03.2]} 65. Qxa7+ {[%clk 0:00:04.2]} 65... Kb3 {[%clk
0:00:03.7]} 66. Qd7 {[%clk 0:00:04.4]} 66... Kc3 {[%clk 0:00:03.8]} 67. Qc7
{[%clk 0:00:02.9]} 67... b3 {[%clk 0:00:03.7]} 68. Qa5+ {[%clk 0:00:03.8]} 68...
Kc2 {[%clk 0:00:03.4]} 69. Qc7 {[%clk 0:00:01.8]} 69... b2 {[%clk 0:00:03.2]}
0-1

[Event "*** Titled Tuesday Blitz"]
[Site "Chess.com"]
[Date "2020.05.26"]
[Round "4"]
[White "Chuchofrio1"]
[Black "pooh2012"]
[Result "0-1"]
[WhiteElo "2280"]
[BlackElo "2457"]
[TimeControl "180+1"]
[EndTime "10:40:22 PDT"]
[Termination "pooh2012 won by checkmate"]

1. e4 {[%clk 0:03:00.9]} 1... c6 {[%clk 0:02:58.3]} 2. d4 {[%clk 0:03:00.4]}
2... d5 {[%clk 0:02:58.4]} 3. exd5 {[%clk 0:03:01.3]} 3... cxd5 {[%clk
0:02:58.1]} 4. Bd3 {[%clk 0:03:01.8]} 4... Nc6 {[%clk 0:02:57.5]} 5. c3 {[%clk
0:03:01.3]} 5... Qc7 {[%clk 0:02:53.8]} 6. h3 {[%clk 0:02:59.4]} 6... Nf6 {[%clk
0:02:46]} 7. Ne2 {[%clk 0:02:58.8]} 7... g6 {[%clk 0:02:37.1]} 8. Bf4 {[%clk
0:02:58.4]} 8... Qb6 {[%clk 0:02:37.6]} 9. Qb3 {[%clk 0:02:57.5]} 9... Qd8
{[%clk 0:02:26.9]} 10. Nd2 {[%clk 0:02:57.3]} 10... Bg7 {[%clk 0:02:26.1]} 11.
O-O {[%clk 0:02:56.9]} 11... O-O {[%clk 0:02:24.1]} 12. Nf3 {[%clk 0:02:56.1]}
12... a6 {[%clk 0:02:18.1]} 13. a4 {[%clk 0:02:53.9]} 13... Na5 {[%clk
0:02:13.6]} 14. Qc2 {[%clk 0:02:52.7]} 14... Nc4 {[%clk 0:02:09.3]} 15. Ne5
{[%clk 0:02:45.2]} 15... Nd6 {[%clk 0:02:04.4]} 16. f3 {[%clk 0:02:44.1]} 16...
Bf5 {[%clk 0:01:47.6]} 17. Ng3 {[%clk 0:02:36.9]} 17... Bxd3 {[%clk 0:01:40]}
18. Qxd3 {[%clk 0:02:37.8]} 18... Qc8 {[%clk 0:01:15.1]} 19. Qd2 {[%clk
0:02:33.5]} 19... b5 {[%clk 0:01:09.4]} 20. axb5 {[%clk 0:02:31.9]} 20... axb5
{[%clk 0:01:10.3]} 21. Bh6 {[%clk 0:02:24.9]} 21... Qb7 {[%clk 0:01:01.9]} 22.
Bxg7 {[%clk 0:02:23.3]} 22... Kxg7 {[%clk 0:00:57.2]} 23. h4 {[%clk 0:02:22.7]}
23... h5 {[%clk 0:00:46.4]} 24. Nd3 {[%clk 0:02:03.5]} 24... Nc4 {[%clk
0:00:36.3]} 25. Qe2 {[%clk 0:02:02.2]} 25... Qc7 {[%clk 0:00:33.7]} 26. Nh1
{[%clk 0:01:53.5]} 26... Nd6 {[%clk 0:00:31]} 27. Ng3 {[%clk 0:01:49.3]} 27...
Nc4 {[%clk 0:00:26.9]} 28. Qf2 {[%clk 0:01:39.9]} 28... Rfe8 {[%clk 0:00:18.6]}
29. Rfe1 {[%clk 0:01:32.9]} 29... Rxa1 {[%clk 0:00:17.3]} 30. Rxa1 {[%clk
0:01:32.2]} 30... e5 {[%clk 0:00:17.8]} 31. dxe5 {[%clk 0:01:08.3]} 31... Nxe5
{[%clk 0:00:18.7]} 32. Nxe5 {[%clk 0:01:07.1]} 32... Qxe5 {[%clk 0:00:19.6]} 33.
Nf1 {[%clk 0:01:03.3]} 33... Qe2 {[%clk 0:00:16.2]} 34. Ng3 {[%clk 0:01:03.2]}
34... Qxf2+ {[%clk 0:00:15.2]} 35. Kxf2 {[%clk 0:01:04.1]} 35... b4 {[%clk
0:00:15.8]} 36. cxb4 {[%clk 0:01:03.5]} 36... Rb8 {[%clk 0:00:16.4]} 37. Ra4
{[%clk 0:01:03]} 37... Nd7 {[%clk 0:00:15.7]} 38. Ne2 {[%clk 0:01:02.6]} 38...
Ne5 {[%clk 0:00:15.9]} 39. Ke3 {[%clk 0:00:45.6]} 39... Nc4+ {[%clk 0:00:15.6]}
40. Kd4 {[%clk 0:00:43.9]} 40... Nxb2 {[%clk 0:00:16.3]} 41. Ra2 {[%clk
0:00:38.8]} 41... Nc4 {[%clk 0:00:11.4]} 42. Kxd5 {[%clk 0:00:38.5]} 42... Rxb4
{[%clk 0:00:09.7]} 43. g3 {[%clk 0:00:32.3]} 43... Ne3+ {[%clk 0:00:09.4]} 44.
Kc5 {[%clk 0:00:31.2]} 44... Rc4+ {[%clk 0:00:09]} 45. Kb5 {[%clk 0:00:31.4]}
45... Rc2 {[%clk 0:00:08.8]} 46. Rxc2 {[%clk 0:00:30.1]} 46... Nxc2 {[%clk
0:00:09.7]} 47. Kc4 {[%clk 0:00:29.4]} 47... Ne1 {[%clk 0:00:09.9]} 48. Nd4
{[%clk 0:00:28.2]} 48... Kf6 {[%clk 0:00:09.7]} 49. Kd5 {[%clk 0:00:28.4]} 49...
Nd3 {[%clk 0:00:09.5]} 50. Ke4 {[%clk 0:00:27.7]} 50... Nf2+ {[%clk 0:00:09.3]}
51. Ke3 {[%clk 0:00:27.9]} 51... Nh1 {[%clk 0:00:08.5]} 52. Kf4 {[%clk
0:00:27.3]} 52... Nf2 {[%clk 0:00:08.7]} 53. g4 {[%clk 0:00:21.2]} 53... Nd3+
{[%clk 0:00:07.7]} 54. Ke3 {[%clk 0:00:20.5]} 54... Ne5 {[%clk 0:00:07.8]} 55.
g5+ {[%clk 0:00:21]} 55... Ke7 {[%clk 0:00:07.3]} 56. Ke4 {[%clk 0:00:21.2]}
56... Nd7 {[%clk 0:00:06.9]} 57. Nc6+ {[%clk 0:00:21.4]} 57... Kd6 {[%clk
0:00:06.9]} 58. Nb4 {[%clk 0:00:21.5]} 58... Nc5+ {[%clk 0:00:06.7]} 59. Kf4
{[%clk 0:00:22.1]} 59... Ne6+ {[%clk 0:00:07.2]} 60. Ke4 {[%clk 0:00:21.6]}
60... Ng7 {[%clk 0:00:07.9]} 61. Nd5 {[%clk 0:00:20.4]} 61... Nf5 {[%clk
0:00:08.5]} 62. Ne3 {[%clk 0:00:17.4]} 62... Nxh4 {[%clk 0:00:08.5]} 63. Kf4
{[%clk 0:00:17]} 63... Ke6 {[%clk 0:00:09]} 64. Kg3 {[%clk 0:00:15.9]} 64...
Nf5+ {[%clk 0:00:09.4]} 65. Nxf5 {[%clk 0:00:13.2]} 65... Kxf5 {[%clk
0:00:10.3]} 66. f4 {[%clk 0:00:13.4]} 66... h4+ {[%clk 0:00:10.8]} 67. Kxh4
{[%clk 0:00:11.7]} 67... Kxf4 {[%clk 0:00:11.7]} 68. Kh3 {[%clk 0:00:12.6]}
68... Kxg5 {[%clk 0:00:11.9]} 69. Kg3 {[%clk 0:00:13.5]} 69... f5 {[%clk
0:00:12.4]} 70. Kh3 {[%clk 0:00:14.4]} 70... f4 {[%clk 0:00:13]} 71. Kh2 {[%clk
0:00:14.5]} 71... Kg4 {[%clk 0:00:13.5]} 72. Kh1 {[%clk 0:00:14.6]} 72... g5
{[%clk 0:00:14.4]} 73. Kh2 {[%clk 0:00:15.5]} 73... Kf3 {[%clk 0:00:14.8]} 74.
Kh1 {[%clk 0:00:16.4]} 74... Ke2 {[%clk 0:00:15.2]} 75. Kh2 {[%clk 0:00:17.3]}
75... f3 {[%clk 0:00:16]} 76. Kh1 {[%clk 0:00:18.2]} 76... f2 {[%clk 0:00:16.8]}
77. Kh2 {[%clk 0:00:19.1]} 77... f1=Q {[%clk 0:00:16.6]} 78. Kg3 {[%clk
0:00:19.6]} 78... Qf3+ {[%clk 0:00:16.6]} 79. Kh2 {[%clk 0:00:20.5]} 79... g4
{[%clk 0:00:15.8]} 80. Kg1 {[%clk 0:00:20.6]} 80... Qf1+ {[%clk 0:00:13.2]} 81.
Kh2 {[%clk 0:00:21.5]} 81... Qh3+ {[%clk 0:00:13.2]} 82. Kg1 {[%clk 0:00:21.7]}
82... Qe3+ {[%clk 0:00:08.8]} 83. Kg2 {[%clk 0:00:20.6]} 83... Qf4 {[%clk
0:00:06.2]} 84. Kh1 {[%clk 0:00:20.1]} 84... g3 {[%clk 0:00:04.8]} 85. Kg1
{[%clk 0:00:20.5]} 85... Qf2+ {[%clk 0:00:05]} 86. Kh1 {[%clk 0:00:20.9]} 86...
Qh2# {[%clk 0:00:05.9]} 0-1